[Event "Turkish Championship 2022"]
[Site "Kemer-Antalya"]
[Date "2022.12.02"]
[Round "8.4"]
[White "Isik, Alparslan"]
[Black "Ozsakallioglu, Okan"]
[Result "1/2-1/2"]
[ECO "B07"]
[WhiteElo "2463"]
[BlackElo "2288"]
[Annotator "TA"]
[PlyCount "72"]
[EventDate "2022.11.25"]
[EventCountry "TUR"]
[SourceTitle "playchess.com"]
[Source "ChessBase"]
[SourceQuality "1"]
[TimeControl "40/5400+30:1800+30"]

{[%evp 12,72,51,45,62,48,73,68,64,42,62,37,36,48,62,63,74,75,81,51,49,54,64,49,58,55,57,52,60,54,54,57,61,61,53,53,59,34,34,39,32,18,35,16,16,15,15,11,36,14,16,13,12,0,0,0,0,0,0,0,0,0,0]} 1. d4 {[%emt 0:01:00]} d6 {[%emt 0:07:00]} 2. Nf3 {[%emt 0:00:30]} g6 {[%emt 0:00:30]} 3. e4 {[%emt 0:03:30]} Bg7 {[%emt 0:00:30]} 4. Bd3 {[%emt 0:01:30]} Nf6 {[%emt 0:06:30]} 5. O-O {[%emt 0:04:30]} O-O {[%emt 0:00:30]} 6. c3 {[%emt 0:01:30]} Bg4 {[%emt 0:07:30]} 7. Nbd2 {[%emt 0:01:30]} e5 {[%emt 0:05:30] B07: Pirc Defence: Miscellaneous Systems.} 8. h3 {[%emt 0:02:30]} Bxf3 {[%emt 0:00:30]} 9. Nxf3 {[%emt 0:00:00]} ({Much worse is} 9. Qxf3 exd4 10. cxd4 Nc6 $11) 9... Nbd7 {[%emt 0:00:30] White is slightly better.} 10. Bg5 {[%emt 0:07:00][%cal Bc1g5,Bg5h4,Bh4g3,Bg3h2][%mdl 32]} c6 {[%emt 0:06:30]} 11. a4 {[%emt 0:01:30] White is more active.} h6 {[%emt 0:03:30]} 12. Bh4 {[%emt 0:00:30] [#]} g5 $146 {[%emt 0:00:30]} ({Predecessor:} 12... Re8 13. Qc2 g5 14. Bg3 Nh5 15. a5 a6 16. Rfe1 Rb8 17. b4 Kh8 18. Rad1 Qe7 {0-1 (40) Eljanov,P (2742)-Mamedov,R (2660) Moscow 2010}) 13. Bg3 {[%emt 0:00:30][%cal Rd4e5]} d5 {[%emt 0:01:30]} 14. Nxe5 {[%emt 0:08:30]} Nxe4 {[%emt 0:05:30]} 15. Nxd7 {[%emt 0:06:30]} Qxd7 {[%emt 0:01:30]} 16. Bh2 {[%emt 0:01:30]} f5 {[%emt 0:01:30]} 17. Qc2 {[%emt 0:02:30]} Rae8 {[%emt 0:02:30]} 18. f3 {[%emt 0:11:30]} Nd6 {[%emt 0:01:30]} 19. Bxd6 {[%emt 0:02:30]} Qxd6 {[%emt 0:00:30]} 20. Bxf5 {[%emt 0:00:30]} c5 {[%emt 0:04:30]} 21. dxc5 {[%emt 0:06:30]} Qxc5+ {[%emt 0:00:30]} 22. Kh1 {[%emt 0:00:00]} d4 {[%emt 0:00:00] Prevents f4.} 23. Bg6 {[%emt 0:00:00]} Re7 {[%emt 0:02:00][%cal Rd4c3]} 24. cxd4 {[%emt 0:05:30]} Qxc2 {[%emt 0:04:30]} 25. Bxc2 {[%emt 0:00:30]} Bxd4 {[%emt 0:00:00]} 26. Rae1 {[%emt 0:00:30]} Rfe8 {[%emt 0:00:00]} 27. Rxe7 {[%emt 0:08:30]} Rxe7 $14 {[%emt 0:00:30][%mdl 4096] Endgame KRB-KRB} 28. b3 {[%emt 0:00:30]} Re3 {[%emt 0:04:30]} 29. Rd1 {[%emt 0:04:53]} Bc3 {[%emt 0:01:30]} 30. Rd8+ {[%emt 0:04:40]} Kf7 {[%emt 0:00:30] The position is equal.} 31. Kg1 {[%emt 0:05:26]} Be1 {[%emt 0:00:30]} 32. g4 {[%emt 0:01:06]} Bh4 {[%emt 0:00:30] [#] And now ...Re1+ would win.} 33. Be4 {[%emt 0:01:43]} Re1+ {[%emt 0:00:30]} 34. Kg2 {[%emt 0:00:30]} Re2+ {[%emt 0:00:00]} 35. Kf1 {[%emt 0:00:23]} Re1+ {[%emt 0:00:00]} 36. Kg2 {[%emt 0:00:00]} Re2+ {[%emt 0:00:00] Weighted Error Value: White=0.07 (flawless) /Black=0.05 (flawless)} 1/2-1/2

[Event "Turkish Championship 2022"]
[Site "Kemer-Antalya"]
[Date "2022.12.02"]
[Round "8.5"]
[White "Gokbulut, Yulia"]
[Black "Yilmaz, Mustafa"]
[Result "0-1"]
[ECO "E46"]
[WhiteElo "1912"]
[BlackElo "2621"]
[Annotator "TA"]
[PlyCount "90"]
[EventDate "2022.11.25"]
[EventCountry "TUR"]
[SourceTitle "playchess.com"]
[Source "ChessBase"]
[SourceQuality "1"]
[TimeControl "40/5400+30:1800+30"]

{[%evp 11,90,-8,5,0,0,-25,-21,-28,-30,-58,-32,-55,-59,-145,-135,-156,-139,-189,-191,-187,-196,-212,-195,-216,-196,-188,-187,-154,-154,-217,-170,-238,-235,-226,-70,-58,-34,-50,0,-4,0,-11,-18,-49,-27,-81,-73,-77,-81,-166,-164,-222,-221,-222,-210,-306,-306,-281,-289,-259,-253,-303,-291,-330,-330,-323,-319,-335,-295,-335,-339,-390,-386,-511,-499,-631,-631,-758,-688,-1167,-1097]} 1. d4 {[%emt 0:01:00]} Nf6 {[%emt 0:01:00]} 2. c4 {[%emt 0:00:00]} e6 {[%emt 0:00:00]} 3. Nc3 {[%emt 0:01:00]} Bb4 {[%emt 0:00:00]} 4. e3 {[%emt 0:00:30]} O-O {[%emt 0:04:30]} 5. Nge2 {[%emt 0:00:30]} Re8 {[%emt 0:01:30]} 6. a3 {[%emt 0:00:30]} Bf8 $1 {[%emt 0:00:30]} 7. Qc2 {[%emt 0:02:30] E46: Nimzo-Indian: Rubinstein: 4 e3 0-0 5 Ne2 without early Bd3.} d5 {[%emt 0:04:30] [#]} 8. Bd2 $146 {[%emt 0:03:30]} ({Predecessor:} 8. cxd5 exd5 9. Nf4 c6 10. Bd3 Nbd7 11. Bd2 Qe7 12. f3 Qd6 13. O-O-O b5 14. Nce2 a5 {1-0 (57) Martins,V (2299)-Matveeva,O (2145) Chess.com INT 2021}) 8... b6 {[%emt 0:03:30]} 9. cxd5 {[%emt 0:04:30] The position is equal.} exd5 {[%emt 0:00:30]} 10. Nf4 {[%emt 0:03:30]} c5 {[%emt 0:02:30]} 11. dxc5 {[%emt 0:07:30]} d4 {[%emt 0:04:30]} 12. Nd1 {[%emt 0:14:30]} (12. Bb5 $15 Bd7 13. Bxd7 Nbxd7 14. Nce2) 12... Nc6 {[%emt 0:06:30]} 13. Be2 {[%emt 0:02:30]} dxe3 {[%emt 0:04:30]} (13... Bxc5 14. b4 dxe3 15. fxe3 $11) 14. Bxe3 {[%emt 0:10:30]} (14. fxe3 $17 Ne4 15. cxb6) 14... Nd4 $19 {[%emt 0:00:30]} 15. Bxd4 {[%emt 0:02:30]} Qxd4 {[%emt 0:00:00]} 16. Qd2 {[%emt 0:03:30]} Qxc5 {[%emt 0:06:00]} (16... Bxc5 17. Qxd4 Bxd4 18. O-O $17) 17. Nd3 {[%emt 0:05:30]} Qd4 {[%emt 0:05:30]} 18. Nf4 {[%emt 0:06:30]} Qe5 {[%emt 0:03:30] ...Ba6 is the strong threat.} 19. Nc3 {[%emt 0:05:30]} Bb7 {[%emt 0:02:30] Threatens to win with ...Rad8.} 20. O-O {[%emt 0:04:30]} (20. Nd3 $17 Qf5 21. O-O) 20... Bd6 {[%emt 0:24:30]} 21. g3 {[%emt 0:00:38] [#]} (21. Rfd1 $142 Rad8 22. Bb5 Qxf4 23. Qxf4 Bxf4 24. Bxe8 Rxe8 25. Nb5) 21... Ne4 $1 {[%emt 0:01:30]} 22. Qd3 {[%emt 0:11:42]} Bc5 $2 {[%emt 0:04:09]} (22... Nxc3 $19 23. bxc3 Bc5) 23. Nxe4 $15 {[%emt 0:02:23]} Bxe4 {[%emt 0:01:14] A strong pair of Bishops.} 24. Qb3 {[%emt 0:00:28]} Bb7 $40 {[%emt 0:05:42][%mdl 128] Black attacks.} (24... Qf6 $15) 25. Bc4 $1 $11 {[%emt 0:00:45]} Re7 {[%emt 0:03:08][%cal Be8e7,Be7d7,Bd7d2][%mdl 32] And now ...Rd8 would win.} ({Much less strong is} 25... Qe4 26. Bxf7+ Kh8 27. Bd5 Bxd5 28. Nxd5 $14 (28. Qxd5 Bd4 $14)) (25... Qf5 {seems wilder.} 26. Bd5 Bxd5 27. Qxd5 Qf6) 26. Bd5 {[%emt 0:00:32]} Bxd5 {[%emt 0:00:31]} 27. Nxd5 {[%emt 0:01:15]} (27. Qxd5 {simplifies} Qxd5 28. Nxd5 Rd7 29. Nc3) 27... Rd7 {[%emt 0:00:40]} 28. Rad1 {[%emt 0:01:25]} (28. Nf4 $11 {remains equal.}) 28... Rad8 $17 {[%emt 0:03:27][%cal Rd7d5,Ba8d8,Bd8d2,Bd2f2][%mdl 32] Black continues to play with concentration.} 29. Nc3 {[%emt 0:00:18]} Rd2 {[%emt 0:02:00] Prevents Qc2. Black is more active.} 30. Rxd2 {[%emt 0:01:13]} (30. Qa4 $17) 30... Rxd2 $19 {[%emt 0:00:02]} 31. Qb5 {[%emt 0:01:22] [#]} (31. Na4 $142) 31... Rxf2 $1 {[%emt 0:03:04][%mdl 512]} 32. Rxf2 {[%emt 0:00:39]} Qe1+ {[%emt 0:00:30][%mdl 64] Pin, Double Attack} 33. Qf1 {[%emt 0:00:00]} (33. Kg2 $142 Qxf2+ 34. Kh3) 33... Bxf2+ {[%emt 0:00:00]} 34. Kg2 {[%emt 0:00:20]} Qxf1+ {[%emt 0:00:05]} 35. Kxf1 {[%emt 0:00:30][%mdl 4096] Endgame KB-KN} Bd4 {[%emt 0:00:00]} 36. Nd1 {[%emt 0:00:00]} f5 {[%emt 0:01:15]} 37. Ke2 {[%emt 0:00:00]} Kf7 {[%emt 0:00:12]} 38. Kd3 {[%emt 0:00:34]} Bg1 {[%emt 0:01:43]} 39. h3 {[%emt 0:00:08]} Ke6 {[%emt 0:01:13]} 40. Nc3 {[%emt 0:00:00]} Ke5 {[%emt 0:00:00]} 41. b4 {[%emt 0:03:18]} Bf2 {[%emt 0:07:05]} 42. Ne2 {[%emt 0:03:30]} b5 {[%emt 0:03:30] Black is clearly winning.} 43. Nc3 {[%emt 0:02:30]} a6 {[%emt 0:00:30]} (43... Bxg3 $2 {is the wrong capture.} 44. Nxb5 Bf2 45. Ke2 $19) 44. a4 {[%emt 0:01:30]} Be1 {[%emt 0:04:32] aiming for ...Bxc3.} 45. axb5 {[%emt 0:06:30]} Bxc3 {[%emt 0:01:08] Weighted Error Value: White=0.43/Black=0.10 (very precise)} (45... Bxg3 46. bxa6 Bf2 47. Na4 $18) ({Wrong is} 45... axb5 $2 46. Nxb5 Bxg3 47. Nd4 $19) 0-1

[Event "Turkish Championship 2022"]
[Site "Kemer-Antalya"]
[Date "2022.12.03"]
[Round "9.1"]
[White "Yilmaz, Mustafa"]
[Black "Yavuz, Efe Metehan"]
[Result "1/2-1/2"]
[ECO "E54"]
[WhiteElo "2621"]
[BlackElo "2256"]
[Annotator "TA"]
[PlyCount "44"]
[EventDate "2022.11.25"]
[EventCountry "TUR"]
[SourceTitle "playchess.com"]
[Source "ChessBase"]
[SourceQuality "1"]
[TimeControl "40/5400+30:1800+30"]

{[%evp 21,44,0,26,0,0,0,0,0,0,0,0,0,0,0,0,0,0,0,0,0,0,0,0,0,0]} 1. d4 {[%emt 0:01:00]} Nf6 {[%emt 0:01:00]} 2. c4 {[%emt 0:00:30]} e6 {[%emt 0:00:00]} 3. Nc3 {[%emt 0:00:30]} Bb4 {[%emt 0:00:00]} 4. e3 {[%emt 0:02:30]} O-O {[%emt 0:04:30]} 5. Bd3 {[%emt 0:00:00]} d5 {[%emt 0:00:00]} 6. Nf3 {[%emt 0:01:00][%cal Bg1f3,Bf3e5,Be5c6][%mdl 32]} dxc4 {[%emt 0:02:00]} 7. Bxc4 {[%emt 0:00:30]} c5 {[%emt 0:00:00]} 8. O-O {[%emt 0:00:00]} cxd4 {[%emt 0:08:00]} 9. exd4 {[%emt 0:00:00]} b6 {[%emt 0:01:30]} 10. Bg5 {[%emt 0:03:30]} Bb7 {[%emt 0:06:30]} 11. Ne5 {[%emt 0:04:30]} Nc6 {[%emt 0:05:30] [#]} (11... h6 $5 {[%cal Rh6g5]} 12. Bxf6 Qxf6 $11) 12. Ba6 $1 {[%emt 0:40:30] E54: Nimzo-Indian: Rubinstein: Main Line: 7...dxc4 8 Bxc4.} Bxa6 {[%emt 0:08:30] The position is equal.} 13. Nxc6 {[%emt 0:00:00]} Qd6 {[%emt 0:00:30]} 14. Bxf6 {[%emt 0:10:00]} gxf6 {[%emt 0:00:30]} ({Don't take} 14... Qxc6 15. Qg4 g6 16. Rfd1 $14) 15. Qg4+ {[%emt 0:04:30]} Kh8 {[%emt 0:00:30] [#]} 16. Qh4 $146 {[%emt 0:00:30] [#] And now Nxb4 would win.} ({Predecessor:} 16. Qf3 f5 17. Rfd1 Bxc3 18. Qxc3 Rac8 19. d5+ f6 20. Qa3 Qxa3 21. bxa3 exd5 22. Ne7 {1-0 (50) Babula,V (2565)-Wells,P (2492) Germany 1999}) 16... Qxc6 {[%emt 0:08:30]} 17. Qxf6+ {[%emt 0:00:30]} Kg8 {[%emt 0:00:30]} 18. Qg5+ {[%emt 0:01:30]} Kh8 {[%emt 0:00:00]} 19. Qf6+ {[%emt 0:00:30]} Kg8 {[%emt 0:00:00] Threatens to win with ...Bd3.} 20. Qg5+ {[%emt 0:00:30]} Kh8 {[%emt 0:00:30]} 21. Qf6+ {[%emt 0:00:00]} Kg8 {[%emt 0:00:30] Hoping for ...Bd3.} 22. Qg5+ {[%emt 0:00:00]} Kh8 {[%emt 0:00:30] An interesting draw.   Weighted Error Value: White=0.04 (flawless) /Black=0.08 (flawless)} 1/2-1/2

[Event "Turkish Championship 2022"]
[Site "Kemer-Antalya"]
[Date "2022.12.03"]
[Round "9.2"]
[White "Ozsakallioglu, Okan"]
[Black "Gokbulut, Yulia"]
[Result "1-0"]
[ECO "B10"]
[WhiteElo "2288"]
[BlackElo "1912"]
[Annotator "TA"]
[PlyCount "99"]
[EventDate "2022.11.25"]
[EventCountry "TUR"]
[SourceTitle "playchess.com"]
[Source "ChessBase"]
[SourceQuality "1"]
[TimeControl "40/5400+30:1800+30"]

{[%evp 9,99,29,34,10,33,22,23,19,35,31,70,51,66,72,90,102,83,97,90,68,140,148,145,110,160,157,195,200,172,192,212,202,198,170,285,294,285,260,524,492,491,485,523,503,498,489,502,502,906,854,1418,1418,1366,1328,1547,1451,3028,1239,29987,29988,29989,29989,29992,1435,1351,1292,1275,660,660,656,649,642,984,978,948,960,779,721,1050,1017,983,983,2547,2156,1764,1536,29988,29989,29989,29990,29992,29993]} 1. e4 {[%emt 0:01:00]} c6 {[%emt 0:01:00]} 2. Nf3 {[%emt 0:00:30]} d5 {[%emt 0:00:00]} 3. d3 {[%emt 0:00:30]} Bg4 {[%emt 0:00:00]} 4. h3 {[%emt 0:00:00]} Bxf3 {[%emt 0:00:30]} 5. Qxf3 {[%emt 0:00:00]} e6 {[%emt 0:00:00]} 6. g3 {[%emt 0:04:30] B10: Caro-Kann: 2 d3 and 2 c4.} Nd7 {[%emt 0:01:00]} 7. Bg2 {[%emt 0:00:30][%cal Re4d5]} Ngf6 {[%emt 0:01:30]} 8. Nd2 {[%emt 0:01:30] White has an edge.} Qc7 {[%emt 0:00:30]} 9. Qe2 {[%emt 0:00:30]} O-O-O {[%emt 0:02:30] [#]} 10. Nf3 $146 {[%emt 0:05:30]} ({Predecessor:} 10. O-O h5 11. Nf3 Bd6 12. c3 Nh7 13. b4 dxe4 14. Qxe4 h4 15. Qxh4 g5 16. Qd4 {1-0 (33) Rakotomaharo,F (2428)-Atalik,E (2464) Douglas 2019}) 10... dxe4 {[%emt 0:04:30]} 11. dxe4 {[%emt 0:00:30]} Bb4+ {[%emt 0:02:30]} (11... h6) 12. c3 {[%emt 0:00:30]} Bd6 {[%emt 0:07:30]} 13. O-O {[%emt 0:00:30]} h6 {[%emt 0:05:30]} 14. Rd1 {[%emt 0:05:30][%cal Od1d6] Strongly threatening Rxd6!} e5 {[%emt 0:03:30]} (14... Ne5 $14) 15. b4 $1 $16 {[%emt 0:02:30]} Kb8 {[%emt 0:03:30]} 16. Nd2 {[%emt 0:01:30] White is more active.} g5 {[%emt 0:03:30]} ({Black should play} 16... h5) 17. a4 {[%emt 0:00:30][%cal Ba2a4,Ba4a5,Ba5a6][%mdl 32]} Nf8 {[%emt 0:06:30]} 18. Nc4 {[%emt 0:08:30]} Ne6 {[%emt 0:00:30]} 19. Be3 {[%emt 0:02:30]} Be7 {[%emt 0:01:30]} 20. Rdb1 {[%emt 0:02:30]} Nd7 {[%emt 0:11:30]} 21. a5 {[%emt 0:01:30]} Rdg8 {[%emt 0:15:30]} (21... h5 {is a better defense.} 22. b5 cxb5 23. Rxb5 a6) 22. Rd1 $18 {[%emt 0:08:30]} Rd8 {[%emt 0:10:28]} 23. Qa2 {[%emt 0:02:30]} c5 $2 {[%emt 0:03:36]} (23... a6 {keeps fighting.} 24. Bb6 Nxb6) 24. b5 {[%emt 0:01:30][%cal Ob5b6]} Qc8 {[%emt 0:00:32]} 25. a6 {[%emt 0:03:30]} b6 {[%emt 0:01:07] [#]} 26. Rxd7 {[%emt 0:01:30][%mdl 512]} Rxd7 {[%emt 0:02:13]} (26... Qxd7 27. Nxe5) 27. Nxe5 {[%emt 0:00:00] Nc6+ is the strong threat.} Rc7 {[%emt 0:00:46]} 28. Nxf7 {[%emt 0:01:00]} Rh7 {[%emt 0:00:30] [#]} (28... Rf8 $142 29. e5 Rd7) 29. e5 $1 {[%emt 0:04:30]} c4 {[%emt 0:03:38]} (29... Rxf7 30. Qd5) 30. Nd6 {[%emt 0:00:30]} Bxd6 {[%emt 0:00:54]} 31. exd6 {[%emt 0:00:30]} Rcd7 {[%emt 0:01:09]} 32. Qc2 {[%emt 0:00:30] Black must now prevent Qe4.} Nc5 {[%emt 0:01:27] Inhibits Qe4.} 33. Qf5 {[%emt 0:00:30]} (33. Bxc5 $142 Qxc5 34. Qe4 Qxd6 35. Qa8+ (35. Qxc4 Rhe7 $11) 35... Kc7 36. Bc6) 33... Rhf7 {[%emt 0:03:44]} 34. Qd5 {[%emt 0:00:00][%csl Gg2][%cal Rd5a8]} Nb7 {[%emt 0:00:00]} 35. axb7 {[%emt 0:01:00]} Rxb7 {[%emt 0:00:21] [#]} 36. d7 {[%emt 0:00:00]} (36. Bxb6 $142 $1 Rh7 {[#]} (36... Rfd7 37. Bxa7+) 37. Bxa7+ $1 {[%mdl 512]} Ka8 38. Qe5 Rhd7 39. Bxb7+ Rxb7 40. Bb6+ Kb8 41. d7+ Rc7 42. dxc8=Q+ Kxc8 43. Qxc7#) 36... Rfxd7 {[%emt 0:01:02]} 37. Qe5+ {[%emt 0:00:00]} Qc7 {[%emt 0:01:09]} 38. Bd4 {[%emt 0:00:30] Threatens to win with Qe8+.} Qxe5 {[%emt 0:00:43]} 39. Bxe5+ {[%emt 0:00:00] A strong pair of Bishops.} Kc8 {[%emt 0:00:14]} 40. Re1 {[%emt 0:00:00]} Rd2 {[%emt 0:01:19]} 41. Bxb7+ {[%emt 0:00:30]} Kxb7 {[%emt 0:01:08][%mdl 4096] Endgame KRB-KR} 42. Bd4 {[%emt 0:00:00]} Rb2 {[%emt 0:00:00]} 43. Re7+ {[%emt 0:00:00]} Kc8 {[%emt 0:00:00]} 44. Rxa7 {[%emt 0:00:30]} Rxb5 {[%emt 0:01:30]} 45. f4 {[%emt 0:00:00]} gxf4 {[%emt 0:00:30]} 46. gxf4 {[%emt 0:00:00][%cal Bg3f4,Bf4f5,Bf5f6][%mdl 32]} Rb1+ {[%emt 0:02:30]} 47. Kf2 {[%emt 0:00:30] White threatens f5 and mate.} b5 {[%emt 0:00:30]} 48. f5 {[%emt 0:00:00] White mates.} Rb2+ {[%emt 0:01:30]} 49. Kf3 {[%emt 0:00:00]} Rh2 {[%emt 0:00:30]} 50. f6 {[%emt 0:00:30] Weighted Error Value: White=0.38/Black=0.66} 1-0

[Event "Turkish Championship 2022"]
[Site "Kemer-Antalya"]
[Date "2022.12.03"]
[Round "9.3"]
[White "Kilic, Eray"]
[Black "Isik, Alparslan"]
[Result "1/2-1/2"]
[ECO "C47"]
[WhiteElo "2437"]
[BlackElo "2463"]
[Annotator "TA"]
[PlyCount "81"]
[EventDate "2022.11.25"]
[EventCountry "TUR"]
[SourceTitle "playchess.com"]
[Source "ChessBase"]
[SourceQuality "1"]
[TimeControl "40/5400+30:1800+30"]

{[%evp 20,81,3,9,8,23,0,0,0,0,0,0,0,0,0,0,0,0,0,0,0,0,0,0,0,-8,-8,-6,-8,-4,-7,-5,-3,-7,-10,-8,0,-2,-12,-8,0,0,0,0,0,0,0,-43,-43,-43,-43,-43,-43,-43,-43,-43,-43,-43,-30,-30,-30,-30,0,-30]} 1. e4 {[%emt 0:01:00]} e5 {[%emt 0:01:00]} 2. Nf3 {[%emt 0:00:30]} Nf6 {[%emt 0:00:00]} 3. Nc3 {[%emt 0:00:00]} Nc6 {[%emt 0:00:00]} 4. d4 {[%emt 0:02:00]} exd4 {[%emt 0:00:30]} 5. Nxd4 {[%emt 0:00:30]} Bb4 {[%emt 0:00:30]} 6. Nxc6 {[%emt 0:00:30]} bxc6 {[%emt 0:00:30]} 7. Bd3 {[%emt 0:00:30]} d5 {[%emt 0:00:00]} 8. exd5 {[%emt 0:00:00]} O-O {[%emt 0:00:00]} 9. O-O {[%emt 0:00:00]} cxd5 {[%emt 0:00:00]} 10. Bg5 {[%emt 0:00:00]} Be6 {[%emt 0:09:00]} 11. Qf3 {[%emt 0:05:00]} h6 $1 {[%emt 0:01:30][%mdl 4] is recently more successful than 11...Be7. C47: Scotch Four Knights and Four Knights with 4 g3.} 12. Bxf6 {[%emt 0:03:30]} Qxf6 {[%emt 0:00:30]} 13. Qxf6 {[%emt 0:00:30]} gxf6 {[%emt 0:00:00]} 14. Ne2 {[%emt 0:04:30]} c5 {[%emt 0:06:00] [#] White must now prevent ...c4.} 15. Nf4 $146 {[%emt 0:11:30]} ({Predecessor:} 15. b3 c4 16. bxc4 dxc4 17. Be4 Rad8 18. Rfd1 f5 19. Bf3 Bd2 20. c3 Rd3 21. Rab1 {0-1 (32) Inarkiev,E (2661)-Artemiev,V (2706) Krasnogorsk 2022}) 15... c4 {[%emt 0:05:30]} 16. Be2 {[%emt 0:00:30]} Bd6 {[%emt 0:00:30]} 17. Nxe6 {[%emt 0:01:30]} fxe6 {[%emt 0:00:30]} 18. Rad1 {[%emt 0:00:30]} Rac8 {[%emt 0:21:30]} 19. Rfe1 {[%emt 0:07:30]} Rfe8 {[%emt 0:08:30]} 20. Bf3 {[%emt 0:09:30]} Re7 {[%emt 0:10:30]} 21. Re2 {[%emt 0:08:30]} f5 {[%emt 0:00:30]} 22. b3 {[%emt 0:05:30]} Kg7 {[%emt 0:01:30]} 23. g4 {[%emt 0:06:30]} cxb3 {[%emt 0:03:30]} 24. axb3 {[%emt 0:00:30]} Rc3 {[%emt 0:00:00]} 25. Kg2 {[%emt 0:04:30]} fxg4 {[%emt 0:06:00]} 26. Bxg4 {[%emt 0:00:00]} Kf6 {[%emt 0:00:00][%cal Oh6h5] Strongly threatening ...h5!} 27. h3 {[%emt 0:02:00]} Bc5 {[%emt 0:00:00]} 28. Rd3 {[%emt 0:07:41]} Rxd3 {[%emt 0:03:30]} 29. cxd3 $11 {[%emt 0:00:19][%mdl 4096] Endgame KRB-KRB} Bd4 {[%emt 0:03:33]} 30. f4 {[%emt 0:06:23]} a5 {[%emt 0:01:32]} 31. Kf3 {[%emt 0:03:55]} e5 {[%emt 0:02:06]} 32. fxe5+ {[%emt 0:00:06]} Bxe5 {[%emt 0:00:13]} 33. d4 {[%emt 0:01:05]} Bxd4 {[%emt 0:00:30]} 34. Rxe7 {[%emt 0:00:00]} Kxe7 $15 {[%emt 0:00:00] KB-KB} 35. Ke2 {[%emt 0:00:16]} Kd6 {[%emt 0:00:09]} 36. Kd3 {[%emt 0:00:30]} Bf6 {[%emt 0:00:00]} 37. Bf3 {[%emt 0:00:00]} Ke5 {[%emt 0:00:10]} 38. Bg2 {[%emt 0:00:00]} d4 {[%emt 0:00:40]} 39. Bc6 {[%emt 0:00:00]} Kd6 {[%emt 0:00:38]} 40. Be8 {[%emt 0:00:03]} Ke5 {[%emt 0:00:00]} 41. Bc6 {[%emt 0:01:42] Weighted Error Value: White=0.02 (flawless) /Black=0.02 (flawless)} 1/2-1/2

[Event "Turkish Championship 2022"]
[Site "Kemer-Antalya"]
[Date "2022.12.03"]
[Round "9.4"]
[White "Yilmazyerli, Mert"]
[Black "Agdelen, Huseyin Can"]
[Result "1/2-1/2"]
[ECO "D02"]
[WhiteElo "2534"]
[BlackElo "2416"]
[Annotator "TA"]
[PlyCount "42"]
[EventDate "2022.11.25"]
[EventCountry "TUR"]
[SourceTitle "playchess.com"]
[Source "ChessBase"]
[SourceQuality "1"]
[TimeControl "40/5400+30:1800+30"]

{[%evp 14,42,13,0,0,0,0,0,0,0,0,0,0,0,0,0,0,0,0,0,0,0,0,0,0,0,0,0,0,0,0]} 1. Nf3 {[%emt 0:04:00][%cal Bg1f3,Bf3d4,Bd4b3][%mdl 32]} d5 {[%emt 0:01:00]} 2. g3 {[%emt 0:00:00]} c5 {[%emt 0:00:30]} 3. Bg2 {[%emt 0:00:00]} Nf6 {[%emt 0:00:00]} 4. O-O {[%emt 0:00:30]} e6 {[%emt 0:00:00][%cal Be7e6,Be6e5][%mdl 32]} 5. d4 {[%emt 0:00:30]} cxd4 {[%emt 0:01:30]} 6. Nxd4 {[%emt 0:00:30]} e5 {[%emt 0:00:30]} 7. Nb3 {[%emt 0:00:00]} Be6 {[%emt 0:00:30]} 8. Nc3 {[%emt 0:00:00] The position is equal.} Be7 {[%emt 0:03:30] D02: 1 d4 d5 2 Nf3 sidelines, including 2...Nf6 3 g3 and 2...Nf6 3 Bf4.} 9. Bg5 {[%emt 0:00:30]} Nbd7 {[%emt 0:02:30]} 10. f4 {[%emt 0:00:30] [#] aiming for f5.} exf4 {[%emt 0:03:30]} ({Much less strong is} 10... Qb6+ 11. Kh1 $14) 11. gxf4 {[%emt 0:00:00][%cal Of4f5] Threatens to win with f5!} Nb6 {[%emt 0:06:30]} 12. f5 {[%emt 0:03:00] Against h6} Bd7 {[%emt 0:00:30]} 13. e4 {[%emt 0:00:30]} (13. Bxd5 $2 {too greedy.} Nfxd5 14. Bxe7 Qxe7 $19) 13... dxe4 {[%emt 0:09:30]} 14. Bxf6 {[%emt 0:00:30]} Bxf6 {[%emt 0:01:30]} 15. Nxe4 {[%emt 0:00:30]} O-O {[%emt 0:04:30]} 16. Nxf6+ {[%emt 0:00:30]} Qxf6 {[%emt 0:00:30]} 17. Qd4 {[%emt 0:00:00] [#]} Qg5 $146 {[%emt 0:00:00]} ({Predecessor:} 17... Rac8 18. Qxf6 gxf6 19. Nd4 Nc4 20. Rf4 Ne5 21. Bf1 Kh8 22. Be2 Rg8+ 23. Kf2 Rg5 24. h4 Rg7 25. Rg1 Rxg1 26. Kxg1 Kg7 27. Kf2 Kf8 {½-½ (37) Oliveira,D (2237)-Wernikiewicz,Z (2262) LSS email 2020}) 18. Qf4 {[%emt 0:00:00]} Qf6 {[%emt 0:00:00][%cal Of8e8]} 19. Qd4 {[%emt 0:00:30]} Qg5 {[%emt 0:00:00]} 20. Qf4 {[%emt 0:00:00]} Qf6 {[%emt 0:00:00][%cal Od7c6]} 21. Qd4 {[%emt 0:00:00]} Qg5 {[%emt 0:00:30] An even fight not without its subleties.   Weighted Error Value: White=0.00 (flawless) /Black=0.00 (flawless)} 1/2-1/2